[Event "SixDays Budapest GM-A 09-2024"]
[Site "Budapest"]
[Date "2024.09.25"]
[Round "2.1"]
[White "Plat, Vojtech"]
[Black "Defromont, Benjamin"]
[Result "1-0"]
[ECO "B01"]
[WhiteElo "2483"]
[BlackElo "2383"]
[Annotator "TA"]
[PlyCount "39"]
[EventDate "2024.09.24"]
[EventType "tourn"]
[EventCountry "HUN"]
[SourceTitle "playchess.com"]
[Source "ChessBase"]
[SourceQuality "1"]
[TimeControl "5400+30"]

{[%evp 9,39,0,0,0,-6,-20,-20,-4,0,12,93,90,121,101,170,169,269,272,1283,1265,1208,1174,2013,1920,1910,1897,1785,1795,1440,1310,1207,1193]} 1. e4 {[%emt 0:00:03]} d5 {[%emt 0:03:47]} 2. exd5 {[%emt 0:00:08]} Qxd5 {[%emt 0:00:06]} 3. d4 {[%emt 0:00:16]} Nc6 {[%emt 0:00:07]} 4. Be3 {[%emt 0:01:41]} e5 {[%emt 0:00:09]} 5. Nc3 {[%emt 0:00:21]} Bb4 {[%emt 0:04:21][%cal Re5d4]} 6. Nge2 {[%emt 0:09:34][%cal Bg1e2,Be2d4,Bd4b5][%mdl 32] And now a3 would win.} exd4 {[%emt 0:12:20]} 7. Nxd4 {[%emt 0:01:48]} Bxc3+ {[%emt 0:01:32]} 8. bxc3 {[%emt 0:00:06] Threatens to win with Nb5. The position is equal.} Bd7 {[%emt 0:02:16]} 9. Nb5 {[%emt 0:01:44]} Qe5 {[%emt 0:02:47] [#]} (9... Qxd1+ $11 10. Rxd1 Rc8 (10... O-O-O 11. Nxa7+ Nxa7 12. Bxa7 $11)) 10. Qd5 $1 $16 {[%emt 0:00:12] Strongly threatening Qxe5+.} Kd8 {[%emt 0:09:42]} (10... Rc8 11. Qxe5+) 11. Qxf7 {[%emt 0:03:49] White is much more active.} Nf6 {[%emt 0:02:17]} (11... Nh6 $16 12. Qf4 Re8) 12. O-O-O $36 {[%emt 0:00:51][%mdl 2048] White is really pushing.} Kc8 {[%emt 0:01:14]} (12... Qe7 {is a better defense.} 13. Qxe7+ Nxe7) 13. Bc4 $18 {[%emt 0:04:47]} Na5 $2 {[%emt 0:13:15] [#]} (13... Rd8 14. Qxg7 Ne4 15. Qxe5 (15. Qxh7 Nxc3 16. Nxc3 Qxc3 $18) 15... Nxe5) 14. Rxd7 $1 {[%emt 0:00:54][%mdl 512] White is clearly winning.} Nxd7 {[%emt 0:00:12]} 15. Rd1 {[%emt 0:00:13]} (15. Nxa7+ Kb8 16. Be2 Qxc3 17. Qxd7 Qa3+ (17... Rxa7 18. Bxa7+ Kxa7 19. Rd1 $11) (17... Qa1+ $2 18. Kd2 $18) 18. Kd1 Rxa7 $11) 15... Nf6 {[%emt 0:03:33] [#]} 16. Rd6 $3 {[%emt 0:03:51][%mdl 512]} Qxd6 {[%emt 0:02:45]} 17. Nxd6+ {[%emt 0:00:02]} cxd6 {[%emt 0:00:08]} 18. Be6+ {[%emt 0:00:05] This pair of bishops is nice.} Kb8 {[%emt 0:00:32]} 19. Qxg7 {[%emt 0:00:09]} Re8 {[%emt 0:00:08]} 20. Qxf6 {[%emt 0:00:05] Black did not feel at home in the position after the opening.   Weighted Error Value: White=0.06 (flawless) /Black=0.42.  Mistake:       	---       	Black=4      Inaccurate:     	---       	Black=1      OK:         	White=1     	Black=2      Best:        	---       	Black=1      Brilliant:      	White=2     	---} 1-0

[Event "SixDays Budapest GM-A 09-2024"]
[Site "Budapest"]
[Date "2024.09.25"]
[Round "2.2"]
[White "Lee, Junhyeok"]
[Black "Panda Sambit"]
[Result "1-0"]
[ECO "A85"]
[WhiteElo "2364"]
[BlackElo "2367"]
[Annotator "RC"]
[PlyCount "57"]
[EventDate "2024.09.24"]
[EventType "tourn"]
[EventCountry "HUN"]
[SourceTitle "playchess.com"]
[Source "ChessBase"]
[SourceQuality "1"]
[TimeControl "5400+30"]

1. d4 {[%emt 0:00:01]} d5 {[%emt 0:06:38]} 2. c4 {[%emt 0:00:15]} e6 {[%emt 0:00:12]} 3. Nc3 {[%emt 0:00:21]} Nf6 {[%emt 0:00:12]} 4. Nf3 {[%emt 0:09:22]} Ne4 {[%emt 0:04:16]} 5. e3 {[%emt 0:06:25]} c6 {[%emt 0:00:06]} 6. Bd3 {[%emt 0:00:05]} f5 {[%emt 0:00:06]} 7. Ne5 {[%emt 0:00:27]} g6 {[%emt 0:00:02]} 8. O-O {[%emt 0:01:39]} Nd7 {[%emt 0:03:47]} 9. Nxd7 {[%emt 0:01:52]} Bxd7 {[%emt 0:00:08]} 10. f3 {[%emt 0:00:37]} Nd6 {[%emt 0:08:11]} 11. b3 {[%emt 0:11:23]} Qf6 {[%emt 0:04:04]} 12. Qe2 {[%emt 0:03:25]} O-O-O {[%emt 0:36:04]} 13. Kh1 {[%emt 0:04:30]} Bg7 {[%emt 0:01:13]} 14. Ba3 {[%emt 0:06:37]} Nf7 {[%emt 0:00:18]} 15. Rfc1 {[%emt 0:01:28]} Kb8 {[%emt 0:01:03]} 16. Bb2 {[%emt 0:02:23]} Bc8 {[%emt 0:03:48]} 17. b4 {[%emt 0:04:10]} f4 {[%emt 0:10:19]} 18. b5 {[%emt 0:02:35]} fxe3 {[%emt 0:12:36]} 19. bxc6 {[%emt 0:00:33]} bxc6 {[%emt 0:01:23]} 20. Rab1 {[%emt 0:06:27]} Ka8 {[%emt 0:00:29]} 21. Na4 {[%emt 0:00:53]} e5 {[%emt 0:03:29]} 22. cxd5 {[%emt 0:01:22]} cxd5 {[%emt 0:00:23]} 23. dxe5 {[%emt 0:01:30]} Nxe5 {[%emt 0:01:25]} 24. Bxe5 {[%emt 0:04:02]} Qxe5 {[%emt 0:00:06]} 25. Ba6 {[%emt 0:01:50]} Qe7 {[%emt 0:01:59]} 26. Qb5 {[%emt 0:05:22]} Bxa6 {[%emt 0:00:29]} 27. Qxa6 {[%emt 0:00:05]} Rb8 {[%emt 0:00:29]} 28. Nb6+ {[%emt 0:00:23]} Rxb6 {[%emt 0:00:09]} 29. Rc8+ {[%emt 0:00:05]} 1-0

[Event "SixDays Budapest GM-A 09-2024"]
[Site "Budapest"]
[Date "2024.09.25"]
[Round "2.3"]
[White "Wachinger, Nikolas"]
[Black "Chen, Yining"]
[Result "1-0"]
[ECO "B12"]
[WhiteElo "2442"]
[BlackElo "2252"]
[Annotator "RC"]
[PlyCount "41"]
[EventDate "2024.09.24"]
[EventType "tourn"]
[EventCountry "HUN"]
[SourceTitle "playchess.com"]
[Source "ChessBase"]
[SourceQuality "1"]
[TimeControl "5400+30"]

1. e4 {[%emt 0:06:13]} c6 {[%emt 0:00:09]} 2. d4 {[%emt 0:00:13]} d5 {[%emt 0:00:07]} 3. e5 {[%emt 0:00:07]} Bf5 {[%emt 0:00:19]} 4. Nd2 {[%emt 0:00:15]} e6 {[%emt 0:00:14]} 5. Nb3 {[%emt 0:00:10]} Nd7 {[%emt 0:00:10]} 6. Nf3 {[%emt 0:00:31]} Qc7 {[%emt 0:00:24]} 7. Be2 {[%emt 0:01:17]} c5 {[%emt 0:04:05]} 8. c3 {[%emt 0:00:08]} h6 {[%emt 0:10:40]} 9. O-O {[%emt 0:00:26]} Ne7 {[%emt 0:01:57]} 10. Nxc5 {[%emt 0:04:05]} Nxc5 {[%emt 0:00:10]} 11. dxc5 {[%emt 0:00:06]} Qxc5 {[%emt 0:09:40]} 12. Nd4 {[%emt 0:01:09]} Nc6 {[%emt 0:05:41]} 13. Nxf5 {[%emt 0:03:23]} exf5 {[%emt 0:00:06]} 14. Be3 {[%emt 0:00:18]} Qe7 {[%emt 0:04:04]} 15. Qxd5 {[%emt 0:00:58]} Qxe5 {[%emt 0:01:05]} 16. Qxe5+ {[%emt 0:15:44]} Nxe5 {[%emt 0:00:03]} 17. Bb5+ {[%emt 0:00:14]} Nc6 {[%emt 0:01:03]} 18. Rad1 {[%emt 0:05:43]} Be7 {[%emt 0:10:20]} 19. Rfe1 {[%emt 0:02:01]} O-O {[%emt 0:05:53]} 20. Rd7 {[%emt 0:01:07]} Bf6 {[%emt 0:04:53]} 21. Rxb7 {[%emt 0:00:22]} 1-0

[Event "SixDays Budapest GM-A 09-2024"]
[Site "Budapest"]
[Date "2024.09.25"]
[Round "2.4"]
[White "Berczes, David"]
[Black "Mamatov, Melis"]
[Result "1-0"]
[ECO "D78"]
[WhiteElo "2400"]
[BlackElo "2362"]
[Annotator "TA"]
[PlyCount "87"]
[EventDate "2024.09.24"]
[EventType "tourn"]
[EventCountry "HUN"]
[SourceTitle "playchess.com"]
[Source "ChessBase"]
[SourceQuality "1"]
[TimeControl "5400+30"]

{[%evp 18,87,-12,-9,7,-12,34,-28,-22,-14,-13,-14,0,0,0,0,0,0,0,0,25,10,22,16,26,46,54,59,76,0,0,0,-11,-11,-13,-15,-18,-16,-27,-97,31,0,0,0,0,0,0,-73,-66,-95,22,28,130,-117,-93,-101,-99,-97,-95,-91,-109,-120,183,141,520,512,487,476,977,972,969,960]} 1. d4 {[%emt 0:12:49]} d5 {[%emt 0:00:05]} 2. Nf3 {[%emt 0:01:13]} Nf6 {[%emt 0:00:06]} 3. c4 {[%emt 0:00:03]} c6 {[%emt 0:00:03]} 4. g3 {[%emt 0:00:05]} g6 {[%emt 0:00:05]} 5. Bg2 {[%emt 0:00:03]} Bg7 {[%emt 0:00:03]} 6. O-O {[%emt 0:00:11]} O-O {[%emt 0:00:03]} 7. Nc3 {[%emt 0:01:09]} dxc4 {[%emt 0:00:07]} 8. e4 $1 {[%emt 0:00:06][%mdl 4] now scores much better than the old 8.Ne5.} b5 {[%emt 0:00:09]} 9. Qe2 {[%emt 0:00:19] D78: Fianchetto Grünfeld: 6 0-0 c6.} b4 {[%emt 0:00:06]} 10. Nd1 {[%emt 0:00:20]} Ba6 {[%emt 0:01:44]} 11. Re1 {[%emt 0:00:47]} e6 {[%emt 0:11:27]} (11... c5 $11 12. d5 Qa5) 12. e5 {[%emt 0:06:05]} (12. a3 $14) 12... Nd5 $11 {[%emt 0:00:16]} 13. Ne3 $146 {[%emt 0:11:30]} ({Predecessor:} 13. h4 c5 14. Qe4 cxd4 15. h5 Nc6 16. Qg4 Bc8 17. Qh3 Qe8 18. Ng5 gxh5 19. f4 {0-1 Piorun,K (2601)-Gumularz,S (2580) POL-ch 80th Warsaw 2023 (4.2)}) 13... c3 {[%emt 0:21:57]} 14. Qc2 {[%emt 0:00:49]} Nd7 {[%emt 0:00:34]} 15. bxc3 {[%emt 0:03:40]} bxc3 {[%emt 0:00:59]} (15... Nxc3 $6 16. a3 Bb5 (16... Qa5 17. Bd2 $16) 17. axb4 $16) 16. Nxd5 {[%emt 0:03:20]} cxd5 {[%emt 0:00:16]} 17. Qxc3 {[%emt 0:01:17]} Rc8 {[%emt 0:02:43]} 18. Qa3 {[%emt 0:02:06]} Bc4 {[%emt 0:03:24]} 19. Bg5 {[%emt 0:06:26]} Qb6 {[%emt 0:02:05]} 20. Qe3 {[%emt 0:02:13]} Rb8 {[%emt 0:12:41]} 21. h4 {[%emt 0:11:47]} Rfe8 {[%emt 0:10:42]} 22. h5 {[%emt 0:23:57]} gxh5 {[%emt 0:03:46]} 23. Qf4 {[%emt 0:01:52]} (23. Nd2 $16) 23... Bd3 $11 {[%emt 0:00:29]} 24. Rac1 {[%emt 0:04:35]} Rec8 {[%emt 0:03:44]} 25. Be7 {[%emt 0:02:29]} Qa6 {[%emt 0:01:13]} 26. Ng5 {[%emt 0:02:38]} Bg6 {[%emt 0:04:46]} 27. Bf1 {[%emt 0:00:05]} Qb7 {[%emt 0:02:49]} 28. Rxc8+ {[%emt 0:02:04]} (28. Bd6 $11 {keeps the balance.} Rxc1 29. Rxc1) 28... Qxc8 {[%emt 0:05:07]} (28... Rxc8 $17 29. Bd6 Nb6) 29. Rc1 {[%emt 0:00:31]} (29. Bd6 $5 Rb2 30. Bd3 $16) 29... Qe8 {[%emt 0:00:32]} 30. Bd6 {[%emt 0:00:04]} Rc8 {[%emt 0:00:46]} 31. Bb5 {[%emt 0:00:54]} Qd8 {[%emt 0:02:15]} 32. Qd2 {[%emt 0:00:31]} (32. Nf3 $11 {remains equal.}) 32... Nb6 $17 {[%emt 0:01:18]} 33. Rc5 {[%emt 0:00:31]} Nc4 {[%emt 0:01:24]} (33... Bh6 $17 34. f4 Bf8 (34... Nc4 35. Qc3 $15)) 34. Qf4 $11 {[%emt 0:00:29]} Bf8 {[%emt 0:02:33]} (34... h6 $11 35. Nf3 (35. Be7 $2 Rxc5 36. Bxd8 hxg5 $19) 35... Bd3) 35. Ba6 $2 {[%emt 0:00:30]} (35. Nxf7 Bxf7 36. a3 (36. Bxf8 $2 Qxf8 37. Qg5+ Bg6 $19) 36... h6 (36... Nxa3 37. Ba6 $15) (36... Bxd6 37. Rxc8 Qxc8 38. exd6 $15) 37. Bxf8 Qxf8 $17) (35. Nxe6 $1 $16 {and life is bright.} fxe6 36. Rxc8 (36. Bxf8 Qxf8 37. Rxc8 Qxc8 $19) 36... Qxc8 37. Bd7) 35... Nxd6 $17 {[%emt 0:02:00]} 36. exd6 {[%emt 0:00:12]} Rb8 {[%emt 0:00:20]} 37. Nxf7 {[%emt 0:00:48]} (37. Rc6 $2 Qd7 $19 (37... Bh6 38. Nxf7 Bxf4 39. Nxd8 $14) (37... Bh6 38. Nxf7 Bxf4 39. Nxd8 $16)) 37... Bxf7 {[%emt 0:01:16]} (37... Rb1+ $2 38. Kg2 Be4+ (38... Bxf7 $2 39. Rc8 $18) 39. Qxe4 dxe4 40. Nxd8 $18) 38. Rc7 {[%emt 0:00:15]} Bg6 {[%emt 0:00:22]} ({Worse is} 38... Bxd6 39. Qxf7+ Kh8 40. Qxh7#) 39. d7 {[%emt 0:00:08] [#]} Bh6 $2 {[%emt 0:03:39][%mdl 8192] [#]} (39... Rb1+ $1 $17 {[%mdl 512] stays on course.} 40. Kg2 Be4+ 41. f3 Bf5 (41... Rb2+ 42. Kg1 $11)) 40. Qe5 $1 $18 {[%emt 0:00:38]} Bg7 $2 {[%emt 0:00:16][%mdl 8192]} (40... Bf8 $16) 41. Qxe6+ $18 Bf7 {[#]} 42. Qc6 $1 {[%emt 0:01:29]} Rb1+ {[%emt 0:02:49]} (42... Bxd4 $142 43. Rc8 Kg7 44. Rxd8 Rxd8) 43. Kh2 $18 {[%emt 0:00:14]} Bf8 {[%emt 0:00:30]} 44. Rc8 $1 {[%emt 0:00:22]} ({Inferior is} 44. Rxa7 Qg5 45. Bd3 Rb2 $11) 1-0

[Event "SixDays Budapest GM-A 09-2024"]
[Site "Budapest"]
[Date "2024.09.25"]
[Round "2.5"]
[White "Nagy, Gabor"]
[Black "Mohammad Fahad, Rahman"]
[Result "1/2-1/2"]
[ECO "D45"]
[WhiteElo "2459"]
[BlackElo "2419"]
[Annotator "TA"]
[PlyCount "37"]
[EventDate "2024.09.24"]
[EventType "tourn"]
[EventCountry "HUN"]
[SourceTitle "playchess.com"]
[Source "ChessBase"]
[SourceQuality "1"]
[TimeControl "5400+30"]

{[%evp 21,37,0,0,8,0,0,0,0,2,0,0,0,0,0,0,-7,16,17]} 1. c4 {[%emt 0:00:04]} e6 {[%emt 0:05:22]} 2. Nc3 {[%emt 0:00:15]} d5 {[%emt 0:00:11]} 3. d4 {[%emt 0:00:22]} c6 {[%emt 0:00:08]} 4. e3 {[%emt 0:01:07]} Nf6 {[%emt 0:00:11]} 5. Nf3 {[%emt 0:00:23]} Nbd7 {[%emt 0:00:23]} 6. Qc2 {[%emt 0:00:24]} Bd6 {[%emt 0:00:11]} 7. Bd3 {[%emt 0:00:46]} O-O {[%emt 0:00:16]} 8. O-O {[%emt 0:00:37]} dxc4 {[%emt 0:00:14]} 9. Bxc4 {[%emt 0:00:08]} a6 {[%emt 0:00:08]} 10. Rd1 {[%emt 0:01:05]} b5 {[%emt 0:00:17]} 11. Be2 {[%emt 0:00:48]} Qc7 {[%emt 0:00:21] The position is equal.} 12. Bd2 {[%emt 0:02:57]} c5 {[%emt 0:01:50]} 13. dxc5 {[%emt 0:02:43]} Qxc5 {[%emt 0:00:17] White must now prevent ...b4.} 14. b4 {[%emt 0:04:47]} Qc7 {[%emt 0:03:20][%cal Oc8b7]} 15. a4 {[%emt 0:06:29]} bxa4 {[%emt 0:03:01]} 16. Qxa4 {[%emt 0:01:34] [#] aiming for Nb5.} Bb7 {[%emt 0:00:29]} 17. Rac1 {[%emt 0:02:19][%cal Oc3e4]} Qb6 {[%emt 0:17:07]} 18. Qa1 {[%emt 0:07:09]} Rac8 {[%emt 0:05:33]} 19. Na4 {[%emt 0:04:35] Not much happened in this game.   Weighted Error Value: White=0.00 (flawless) /Black=0.03 (flawless) .  OK:         	White=4     	Black=4} 1/2-1/2

[Event "SixDays Budapest GM-A 09-2024"]
[Site "Budapest"]
[Date "2024.09.25"]
[Round "3.1"]
[White "Mohammad Fahad, Rahman"]
[Black "Plat, Vojtech"]
[Result "1/2-1/2"]
[ECO "B38"]
[WhiteElo "2419"]
[BlackElo "2483"]
[Annotator "TA"]
[PlyCount "35"]
[EventDate "2024.09.24"]
[EventType "tourn"]
[EventCountry "HUN"]
[SourceTitle "playchess.com"]
[Source "ChessBase"]
[SourceQuality "1"]
[TimeControl "5400+30"]

{[%evp 15,35,0,34,0,57,9,22,18,20,18,8,7,30,17,29,25,54,25,62,72,52,-52]} 1. e4 {[%emt 0:04:17]} c5 {[%emt 0:01:42]} 2. Nf3 {[%emt 0:00:24]} g6 {[%emt 0:00:45]} 3. d4 {[%emt 0:00:16]} cxd4 {[%emt 0:00:04]} 4. Nxd4 {[%emt 0:00:09]} Bg7 {[%emt 0:00:05]} 5. c4 {[%emt 0:00:35]} Nc6 {[%emt 0:00:26]} 6. Be3 {[%emt 0:00:16]} Qb6 {[%emt 0:00:06]} 7. Nb3 {[%emt 0:00:35]} Qd8 {[%emt 0:00:04]} 8. Nd4 {[%emt 0:01:23]} Qb6 $1 {[%emt 0:00:04][%csl LRb2,LRd4]} 9. Nb3 {[%emt 0:00:07]} Qd8 {[%emt 0:00:03]} 10. Nc3 {[%emt 0:00:50]} (10. Qd2 $14 {deserves consideration.}) 10... Bxc3+ $1 $11 {[%emt 0:00:16]} 11. bxc3 {[%emt 0:00:08] The position is equal.} Nf6 {[%emt 0:00:01]} 12. f3 {[%emt 0:02:11]} d6 {[%emt 0:00:05]} 13. Bh6 {[%emt 0:03:30]} Be6 {[%emt 0:03:33]} 14. Be2 {[%emt 0:04:34]} Rg8 {[%emt 0:02:56]} 15. Be3 {[%emt 0:02:53]} g5 {[%emt 0:02:59][%cal Bg6g5,Bg5g4][%mdl 32]} 16. Nd4 {[%emt 0:06:14]} g4 {[%emt 0:02:40]} 17. Nxe6 {[%emt 0:07:19]} fxe6 {[%emt 0:00:05]} 18. Qb3 {[%emt 0:00:29] Weighted Error Value: White=0.09 (flawless) /Black=0.09 (flawless) .  Mistake:       	White=2     	---        Inaccurate:     	---       	Black=2      OK:         	White=4     	Black=3      Best:        	White=1     	---        Strong:       	---       	Black=1} (18. O-O $14) 1/2-1/2

[Event "SixDays Budapest GM-A 09-2024"]
[Site "Budapest"]
[Date "2024.09.25"]
[Round "3.3"]
[White "Chen, Yining"]
[Black "Berczes, David"]
[Result "1/2-1/2"]
[ECO "D45"]
[WhiteElo "2252"]
[BlackElo "2400"]
[Annotator "TA"]
[PlyCount "98"]
[EventDate "2024.09.24"]
[EventType "tourn"]
[EventCountry "HUN"]
[SourceTitle "playchess.com"]
[Source "ChessBase"]
[SourceQuality "1"]
[TimeControl "5400+30"]

{[%evp 14,98,0,0,0,0,0,0,7,0,0,3,23,0,0,0,19,13,12,0,0,0,29,42,57,29,56,66,59,55,82,91,84,79,83,90,80,78,123,123,120,124,124,21,27,0,0,0,0,0,0,-35,-38,-33,-34,-33,-33,-40,-28,-40,-40,-40,-40,-41,0,0,0,-10,0,0,0,0,0,0,0,0,0,0,0,0,0,0,0,0,0,0,0]} 1. d4 {[%emt 0:00:30]} d5 {[%emt 0:17:54]} 2. c4 {[%emt 0:00:00]} e6 {[%emt 0:03:05]} 3. Nf3 {[%emt 0:00:00]} Nf6 {[%emt 0:00:26]} 4. Nc3 {[%emt 0:00:13]} c6 {[%emt 0:00:55]} 5. e3 {[%emt 0:00:21]} Nbd7 {[%emt 0:01:03]} 6. Be2 {[%emt 0:00:21]} Bd6 {[%emt 0:01:29]} 7. O-O {[%emt 0:00:15]} O-O {[%emt 0:00:19]} 8. b3 {[%emt 0:00:18]} b6 {[%emt 0:00:21]} 9. Bb2 {[%emt 0:00:10]} Bb7 {[%emt 0:00:05]} 10. Bd3 {[%emt 0:00:22]} Re8 {[%emt 0:09:05]} 11. Rc1 {[%emt 0:00:33]} Qe7 {[%emt 0:08:19]} 12. Re1 {[%emt 0:00:28]} c5 {[%emt 0:04:14]} 13. cxd5 {[%emt 0:02:01]} exd5 {[%emt 0:00:06]} 14. Ne2 {[%emt 0:09:38]} a6 {[%emt 0:12:54]} 15. Ng3 {[%emt 0:10:09]} g6 {[%emt 0:02:56] Repels Nf5} 16. Qe2 {[%emt 0:04:20]} Ne4 {[%emt 0:20:27]} 17. dxc5 {[%emt 0:04:15]} Nxg3 {[%emt 0:04:38]} 18. hxg3 {[%emt 0:00:06]} bxc5 {[%emt 0:00:04]} 19. Rc2 {[%emt 0:12:02]} Qf8 {[%emt 0:05:26]} 20. Qd2 {[%emt 0:03:30]} Rac8 {[%emt 0:04:17]} 21. Rd1 {[%emt 0:02:19]} Ne5 {[%emt 0:02:10]} 22. Nxe5 {[%emt 0:02:04]} Bxe5 {[%emt 0:00:04]} 23. Bxe5 {[%emt 0:03:46]} Rxe5 {[%emt 0:00:06][%cal Be8e5,Be5d5,Bd5d4,Bd4g4][%mdl 32]} 24. Be2 {[%emt 0:00:55]} Qe7 {[%emt 0:01:36]} 25. Bf3 {[%emt 0:03:48]} d4 {[%emt 0:00:29]} 26. exd4 {[%emt 0:03:04]} Bxf3 {[%emt 0:00:12]} 27. gxf3 {[%emt 0:00:02]} Rd5 {[%emt 0:00:23]} 28. Qe3 {[%emt 0:02:25]} (28. Qc1 $16) 28... Qd7 $1 $11 {[%emt 0:00:37]} 29. Re1 {[%emt 0:06:49][%cal Rd4c5]} (29. Rxc5 $2 Rcxc5 30. a3 Rc6 $19) 29... Qh3 {[%emt 0:00:49]} 30. g4 {[%emt 0:04:06][%cal Rc2c5] Against Rh5} (30. dxc5 {leads to mate.} Rh5) (30. Rxc5 $2 {too greedy.} Rcxc5 31. dxc5 Rh5 32. Qe8+ Kg7 $19) 30... h5 {[%emt 0:00:30]} ({But not} 30... Rxd4 31. Rxc5 Rcd8 32. Rc4 $14) 31. Qf4 {[%emt 0:03:37] [#] Threatens to win with Re7.} Rxd4 {[%emt 0:00:29]} 32. Qg3 {[%emt 0:01:51]} (32. Qf6 $5 hxg4 33. Rxc5 $11) 32... Qxg3+ {[%emt 0:00:20]} 33. fxg3 {[%emt 0:00:01]} hxg4 {[%emt 0:00:07]} 34. fxg4 {[%emt 0:00:13]} Rxg4 $15 {[%emt 0:00:09][%mdl 4096] Endgame. KRR-KRR} 35. Kf2 {[%emt 0:00:57]} Rc6 {[%emt 0:01:14]} 36. Kf3 {[%emt 0:03:46]} Rd4 {[%emt 0:00:40]} 37. Re4 {[%emt 0:00:53] [#] Black must now prevent Rxd4.} Rf6+ {[%emt 0:00:30]} 38. Rf4 {[%emt 0:02:32]} Rdxf4+ {[%emt 0:00:31]} 39. gxf4 {[%emt 0:00:02] KR-KR. The position is equal.} g5 {[%emt 0:00:29]} 40. Rxc5 {[%emt 0:01:17]} gxf4 {[%emt 0:00:30]} 41. Rc4 {[%emt 0:00:44]} Kf8 {[%emt 0:00:18]} 42. Rxf4 {[%emt 0:01:03]} Ke7 {[%emt 0:00:39]} 43. Rxf6 {[%emt 0:00:22]} Kxf6 $11 {[%emt 0:00:05] KPP-KPP} 44. b4 {[%emt 0:00:26]} Ke5 {[%emt 0:00:06]} 45. a4 {[%emt 0:00:05]} Kd5 {[%emt 0:00:06]} 46. b5 {[%emt 0:00:08]} axb5 {[%emt 0:00:05]} 47. axb5 {[%emt 0:00:03]} Kc5 {[%emt 0:00:05]} 48. Kf4 {[%emt 0:00:03]} f5 {[%emt 0:00:06]} 49. Kxf5 {[%emt 0:00:05]} Kxb5 {Weighted Error Value: White=0.10 (very precise) /Black=0.07 (flawless) .  Mistake:       	White=1     	---        Inaccurate:     	White=3     	Black=5      OK:         	White=14    	Black=17     Best:        	---       	Black=2      Strong:       	---       	Black=1} 1/2-1/2